bitfinex/quotes_SOLUSD_20260308
["timestamp","ask_amount","ask_price","bid_price","bid_amount"]
[1772937534074,12.09204464,82.699,82.669,0.49999999]
[1772937534263,12.09058264,82.709,82.669,0.49999999]
[1772937534766,0.28432314,82.723,82.669,0.49999999]
[1772937534767,12.08795193,82.727,82.669,0.49999999]
[1772937534971,12.08795193,82.727,82.67,0.49999999]
[1772937535650,12.08634484,82.738,82.67,0.49999999]
[1772937536075,12.08634484,82.738,82.674,0.49999999]
[1772937536248,12.08634484,82.738,82.676,0.49999999]
[1772937536768,12.08634484,82.738,82.679,0.49999999]
[1772937539773,12.08634484,82.738,82.678,0.28432314]
[1772937539774,12.08634484,82.738,82.682,0.49999999]
[1772937540571,4.2134049,82.73,82.682,0.49999999]
[1772937542174,27.55921117,82.77,82.684,0.49999999]
[1772937542175,12.08700353,82.734,82.684,0.49999999]
[1772937542577,12.08488422,82.748,82.686,0.49999999]
[1772937543081,12.08488422,82.748,82.689,0.49999999]
[1772937543862,12.08488422,82.748,82.692,0.49999999]
[1772937544458,0.1,82.76,82.695,0.49999999]
[1772937544658,0.1,82.76,82.697,0.49999999]
[1772937545278,0.1,82.76,82.695,3.69383402]
[1772937545279,0.1,82.76,82.7,0.49999999]
[1772937545484,0.1,82.76,82.703,0.49999999]
[1772937545670,0.1,82.76,82.706,0.49999999]
[1772937546481,0.1,82.76,82.708,0.49999999]
[1772937548078,0.1,82.76,82.707,0.28432314]
[1772937548079,0.1,82.76,82.711,0.49999999]
[1772937548278,0.1,82.76,82.712,0.49999999]
[1772937550283,4.3134049,82.76,82.714,0.49999999]
[1772937552572,4.3134049,82.76,82.71,60.45218232]
[1772937552573,0.1,82.76,82.716,0.49999999]
[1772937553587,0.1,82.76,82.718,0.49999999]
[1772937554877,0.1,82.76,82.72,0.49999999]
[1772937556090,0.1,82.76,82.722,0.49999999]
[1772937556295,0.1,82.76,82.723,0.49999999]
[1772937557195,0.1,82.76,82.725,0.49999999]
[1772937559886,0.1,82.76,82.719,60.445605]
[1772937559887,0.1,82.76,82.727,0.49999999]
[1772937560223,0.1,82.76,82.726,42.30834319]
[1772937560224,4.3134049,82.76,82.726,42.30834319]
[1772937560394,4.3134049,82.76,82.727,0.49999999]
[1772937562205,12.08327795,82.759,82.729,0.49999999]
[1772937562407,4.3134049,82.76,82.729,0.49999999]
[1772937562787,16.396612,82.76,82.729,0.49999999]
[1772937563001,4.3134049,82.76,82.729,0.49999999]
[1772937564210,4.2134049,82.75,82.73,12.08751359]
[1772937564708,12.08327795,82.759,82.73,12.08751359]
[1772937565199,12.08327795,82.759,82.728,0.49999999]
[1772937566608,12.08327795,82.759,82.729,12.0876597]
[1772937569113,4.2134049,82.75,82.703,0.28432314]
[1772937569320,4.2134049,82.75,82.704,0.49999999]
[1772937571607,4.3134049,82.76,82.706,0.49999999]
[1772937576516,4.3134049,82.76,82.705,102.77492291]
[1772937576517,4.3134049,82.76,82.708,0.49999999]
[1772937578515,4.3134049,82.76,82.71,0.49999999]
[1772937580917,0.1,82.76,82.713,0.49999999]
[1772937581113,0.1,82.76,82.716,0.49999999]
[1772937581524,0.1,82.76,82.718,0.49999999]
[1772937582022,4.3134049,82.78,82.719,0.49999999]
[1772937584028,4.3134049,82.78,82.722,0.49999999]
[1772937586012,12.08035854,82.779,82.722,0.49999999]
[1772937586824,4.3134049,82.78,82.725,0.49999999]
[1772937590514,4.30487813,82.78,82.727,0.49999999]
[1772937593630,4.30487813,82.78,82.729,0.49999999]
[1772937595435,4.30487813,82.78,82.729,0.28432314]
[1772937595642,4.30487813,82.78,82.733,0.49999999]
[1772937595643,0.1,82.78,82.733,0.49999999]
[1772937596150,4.30487813,82.78,82.733,0.49999999]
[1772937598031,4.20487813,82.77,82.735,0.49999999]
[1772937598232,4.20487813,82.76,82.735,0.49999999]
[1772937598733,4.20487813,82.77,82.735,0.49999999]
[1772937600047,4.20487813,82.77,82.736,42.30322954]
[1772937600248,4.20487813,82.77,82.736,42.80322953]
[1772937600425,0.1,82.78,82.737,0.49999999]
[1772937602237,0.1,82.78,82.739,0.49999999]
[1772937604053,0.1,82.78,82.742,0.49999999]
[1772937606052,30.28604702,82.82,82.744,0.49999999]
[1772937606245,30.28604702,82.82,82.743,0.28432314]
[1772937606246,0.28432314,82.818,82.746,0.49999999]
[1772937606653,4.30487813,82.82,82.746,0.49999999]
[1772937607050,0.28432314,82.819,82.746,0.49999999]
[1772937607364,12.07564432,82.812,82.749,0.49999999]
[1772937607551,12.07564432,82.812,82.752,0.49999999]
[1772937607758,0.28432314,82.816,82.752,0.49999999]
[1772937607955,0.28432314,82.816,82.755,0.49999999]
[1772937608154,4.20487813,82.81,82.755,0.49999999]
[1772937608460,4.20487813,82.81,82.757,0.49999999]
[1772937608762,4.20487813,82.81,82.759,0.49999999]
[1772937610048,4.20487813,82.81,82.761,0.49999999]
[1772937611854,16.28085308,82.81,82.762,42.28993982]
[1772937612143,16.28085308,82.81,82.763,0.49999999]
[1772937612854,4.20487813,82.81,82.763,0.49999999]
[1772937613561,4.20487813,82.81,82.764,0.49999999]
[1772937614148,4.20487813,82.81,82.766,0.49999999]
[1772937617163,4.20487813,82.8,82.758,30.20841323]
[1772937617349,4.20487813,82.8,82.759,0.49999999]
[1772937617664,4.20487813,82.79,82.759,0.49999999]
[1772937618753,4.20487813,82.79,82.758,30.20841323]
[1772937618754,12.07656542,82.805,82.76,0.49999999]
[1772937618954,12.07604861,82.809,82.76,0.49999999]
[1772937620668,12.07604861,82.809,82.762,0.49999999]
[1772937623563,12.07604861,82.809,82.764,0.49999999]
[1772937626565,12.07604861,82.809,82.766,0.49999999]
[1772937628673,12.07604861,82.809,82.765,42.28840693]
[1772937628674,4.20487813,82.81,82.767,42.28738505]
[1772937628862,12.07471115,82.818,82.768,0.49999999]
[1772937629258,4.20487813,82.81,82.768,0.49999999]
[1772937630479,12.07471115,82.818,82.768,0.49999999]
[1772937632681,12.07471115,82.818,82.77,0.49999999]
[1772937633572,4.20487813,82.81,82.771,42.28534147]
[1772937637182,12.07598207,82.809,82.771,0.49999999]
[1772937638578,12.07598207,82.809,82.772,12.58138016]
[1772937638788,12.07598207,82.809,82.773,0.49999999]
[1772937639866,12.07598207,82.809,82.775,0.49999999]
[1772937641589,12.07598207,82.809,82.776,12.08079636]
[1772937642669,12.07598207,82.809,82.776,12.58079635]
[1772937642865,12.07598207,82.809,82.777,0.49999999]
[1772937644574,12.07598207,82.809,82.778,12.08050448]
[1772937646288,12.07598207,82.809,82.773,0.49999999]
[1772937649085,4.20487813,82.81,82.774,42.28380892]
[1772937649280,12.07536264,82.814,82.775,0.49999999]
[1772937650393,4.20487813,82.81,82.777,0.49999999]
[1772937650574,4.20184409,82.81,82.777,0.49999999]
[1772937651794,4.20184409,82.81,82.776,42.28278727]
[1772937652092,4.20184409,82.81,82.777,0.49999999]
[1772937653595,12.07598207,82.809,82.778,12.08050448]
[1772937653891,12.07598207,82.809,82.779,0.49999999]
[1772937656799,12.07598207,82.809,82.78,12.08021261]
[1772937658200,12.07598207,82.809,82.78,0.49999999]
[1772937659687,12.07598207,82.809,82.781,12.08006668]
[1772937660501,12.07598207,82.809,82.782,0.49999999]
[1772937660899,12.07466975,82.818,82.784,0.49999999]
[1772937661993,4.20184409,82.8,82.755,0.49999999]
[1772937663002,4.20184409,82.79,82.755,0.49999999]
[1772937663910,16.28065823,82.79,82.757,0.49999999]
[1772937664199,4.20184409,82.81,82.757,0.49999999]
[1772937671317,4.20184409,82.81,82.759,0.49999999]
[1772937672600,16.27774447,82.81,82.759,0.49999999]
[1772937674498,4.30184409,82.82,82.761,0.28432314]
[1772937674726,0.1,82.82,82.764,0.78432313]
[1772937674902,0.1,82.82,82.765,0.49999999]
[1772937675515,0.1,82.82,82.768,0.49999999]
[1772937675831,0.1,82.82,82.772,0.28432314]
[1772937676046,0.1,82.82,82.773,0.49999999]
[1772937676507,0.1,82.82,82.775,0.49999999]
[1772937676706,0.1,82.82,82.777,0.49999999]
[1772937678121,0.1,82.82,82.779,0.49999999]
[1772937679940,4.30184409,82.82,82.779,0.49999999]
[1772937680426,4.20184409,82.81,82.781,0.49999999]
[1772937680618,4.30184409,82.82,82.781,0.49999999]
[1772937681225,4.20184409,82.81,82.78,12.08021261]
[1772937682124,4.30184409,82.82,82.781,0.49999999]
[1772937682723,4.20184409,82.81,82.782,12.07992075]
[1772937683029,4.20184409,82.81,82.782,12.57992074]
[1772937683230,4.20184409,82.81,82.783,0.49999999]
[1772937685033,4.20184409,82.81,82.784,12.07962891]
[1772937685226,12.07598207,82.809,82.784,12.07962891]
[1772937688024,12.07598207,82.809,82.758,0.49999999]
[1772937688226,0.28432314,82.808,82.758,0.49999999]
[1772937688623,4.20184409,82.78,82.751,12.08438181]
[1772937689807,12.08035854,82.779,82.751,12.08438181]
[1772937691935,4.20184409,82.77,82.751,12.08438181]
[1772937692829,4.20184409,82.78,82.751,12.08438181]
[1772937693037,4.20184409,82.76,82.724,0.49999999]
[1772937693937,4.20184409,82.76,82.725,42.30885463]
[1772937694138,4.20184409,82.76,82.726,0.49999999]
[1772937695017,0.28432314,82.787,82.726,0.49999999]
[1772937695218,4.20184409,82.78,82.726,0.49999999]
[1772937696226,4.20184409,82.79,82.729,0.49999999]
[1772937696736,4.20184409,82.8,82.731,0.78432313]
[1772937696946,0.14216157,82.808,82.734,0.49999999]
[1772937697120,12.07601259,82.809,82.734,0.49999999]
[1772937697325,12.07521408,82.815,82.738,0.49999999]
[1772937697516,4.20184409,82.81,82.739,0.49999999]
[1772937697842,4.20184409,82.81,82.742,0.49999999]
[1772937698537,4.20184409,82.8,82.747,0.49999999]
[1772937698736,4.20184409,82.8,82.748,0.49999999]
[1772937701543,4.20184409,82.8,82.751,0.49999999]
[1772937704829,12.07744054,82.799,82.753,0.49999999]
[1772937705343,4.20184409,82.79,82.753,0.49999999]
[1772937706442,0.28432314,82.798,82.753,0.49999999]
[1772937708741,4.20184409,82.79,82.755,0.49999999]
[1772937708942,12.07598207,82.809,82.755,0.49999999]
[1772937710834,12.07598207,82.809,82.757,0.49999999]
[1772937711441,12.07526223,82.814,82.757,0.28432314]
[1772937711641,12.07526223,82.814,82.758,0.49999999]
[1772937712430,4.30121314,82.82,82.759,102.70786257]
[1772937712639,4.30121314,82.82,82.761,0.49999999]
[1772937713639,0.1,82.82,82.764,0.49999999]
[1772937713940,4.30121314,82.82,82.764,0.49999999]
[1772937714963,4.30121314,82.82,82.766,0.49999999]
[1772937716059,4.20121314,82.81,82.768,0.49999999]
[1772937718560,12.07598207,82.809,82.77,0.49999999]
[1772937719662,12.07598207,82.809,82.772,0.49999999]
[1772937721660,0.60529257,82.82,82.772,0.49999999]
[1772937721857,0.60529257,82.82,82.763,60.41315052]
[1772937721858,12.07469445,82.818,82.774,0.49999999]
[1772937723958,12.07469445,82.818,82.766,0.49999999]
[1772937723959,4.20121314,82.81,82.766,0.49999999]
[1772937725662,16.27719282,82.81,82.768,0.49999999]
[1772937728565,16.27719282,82.81,82.759,60.41604829]
[1772937728566,4.20121314,82.81,82.77,0.49999999]
[1772937731671,4.20121314,82.81,82.771,42.28534147]
[1772937731871,4.20121314,82.81,82.772,0.49999999]
[1772937732471,12.07519397,82.815,82.772,0.49999999]
[1772937733171,4.20121314,82.81,82.772,0.49999999]
[1772937733572,12.07519397,82.815,82.772,0.49999999]
[1772937734785,12.07452396,82.819,82.774,0.49999999]
[1772937737775,12.07452396,82.819,82.776,0.49999999]
[1772937742086,0.1,82.82,82.778,0.49999999]
[1772937742984,12.07452396,82.819,82.778,0.49999999]
[1772937744487,0.1,82.82,82.78,0.49999999]
[1772937746891,0.1,82.82,82.782,0.49999999]
[1772937749268,0.1,82.82,82.766,0.28432314]
[1772937749269,0.1,82.83,82.785,0.49999999]
[1772937749470,0.1,82.83,82.788,0.49999999]
[1772937750278,0.10000001,82.839,82.788,0.47313765]
[1772937750467,0.10000001,82.839,82.79,0.47313765]
[1772937751793,0.10000001,82.839,82.793,0.47313765]
[1772937755689,0.10000001,82.839,82.795,0.49073987]
[1772937758178,0.10000001,82.839,82.797,0.49073987]
[1772937758384,0.1,82.84,82.797,0.49073987]
[1772937761297,0.1,82.84,82.799,0.49073987]
[1772937762403,0.1,82.84,82.8,0.49073987]
[1772937762598,0.1,82.84,82.802,0.49073987]
[1772937764000,0.1,82.84,82.805,0.49073987]
[1772937764303,0.10000001,82.839,82.805,0.49073987]
[1772937766096,0.10000001,82.839,82.806,42.26746853]
[1772937766290,0.10000001,82.839,82.807,0.49073987]
[1772937768790,0.10000001,82.839,82.809,0.49073987]
[1772937770682,0.10000001,82.839,82.811,0.49073987]
[1772937772602,0.10000001,82.839,82.813,0.49073987]
[1772937773606,0.1,82.84,82.813,0.49073987]
[1772937774889,0.1,82.84,82.815,0.49073987]
[1772937779911,0.1,82.84,82.817,0.49073987]
[1772937780111,0.10000001,82.839,82.817,0.49073987]
[1772937781513,0.1,82.84,82.819,0.49073987]
[1772937782012,0.20000001,82.84,82.819,0.49073987]
[1772937782813,0.20000001,82.84,82.821,0.49305481]
[1772937783507,12.05765971,82.935,82.824,0.2]
[1772937783710,0.1,82.94,82.857,0.2]
[1772937783903,0.1,82.94,82.857,0.48432314]
[1772937784107,0.1,82.94,82.862,0.48432314]
[1772937784108,1e-08,82.94,82.862,0.48432314]
[1772937784314,1e-08,82.94,82.918,0.2]
[1772937784503,1e-08,82.94,82.919,63.15121672]
[1772937784705,1e-08,82.94,82.92,42.20935841]
[1772937784911,0.1,82.97,82.926,0.2]
[1772937785107,0.1,82.97,82.928,0.2]
[1772937785397,0.47447944,82.988,82.93,0.2]
[1772937785598,4.29714594,82.99,82.923,3.69383402]
[1772937785599,0.1,82.99,82.935,0.63521638]
[1772937785819,0.1,82.99,82.941,0.49305481]
[1772937785999,0.1,82.99,82.94,0.14216157]
[1772937786000,0.1,82.99,82.946,0.63521638]
[1772937786331,1e-08,83.02,82.995,0.1]
[1772937786619,1e-08,83.02,82.947,157.22533472]
[1772937786620,7.54797195,83.028,82.966,0.49305481]
[1772937786794,7.54797195,83.028,82.951,0.28432314]
[1772937786795,7.54797195,83.028,82.971,0.28432314]
[1772937787114,7.54797195,83.028,82.972,0.49305481]
[1772937787611,0.47447944,83.027,82.972,0.49305481]
[1772937787814,0.47447944,83.027,82.975,0.49305481]
[1772937788119,7.54797195,83.028,82.975,0.49305481]
[1772937788120,0.47447944,83.019,82.975,0.49305481]
[1772937790414,0.47447944,83.019,82.977,0.49305481]
[1772937790632,7.54599014,83.027,82.979,0.49305481]
[1772937791001,4.29714594,83.05,82.982,0.49305481]
[1772937791296,4.19714594,83.04,82.982,0.49305481]
[1772937792305,0.1,83.05,82.982,0.49305481]
[1772937792306,4.29714594,83.05,82.982,0.49305481]
[1772937792510,4.29714594,83.05,82.988,0.49305481]
[1772937792711,0.47447944,83.039,82.988,0.49305481]
[1772937793820,0.47447944,83.039,82.991,0.49305481]
[1772937794803,0.1,83.05,83.022,0.49305481]
[1772937795911,0.1,83.05,83.023,12.04485504]
[1772937796416,0.1,83.05,83.009,0.49305481]
[1772937796723,0.1,83.05,82.999,30.12078918]
[1772937796724,4.19714594,83.04,82.999,30.12078918]
[1772937796924,0.17656168,83.039,83.003,12.0477573]
[1772937798523,0.17656168,83.039,83.001,0.49305481]
[1772937799018,0.17656168,83.039,82.996,12.2884744]
[1772937799019,0.17656168,83.019,82.996,12.2884744]
[1772937799211,0.17656168,83.019,82.997,12.04862826]
[1772937800502,0.17656168,83.019,82.996,12.11191272]
[1772937800503,0.28432314,83.017,82.996,12.11191272]
[1772937800924,12.04558047,83.018,82.996,12.11191272]
[1772937802418,4.19714594,83.02,82.997,12.04862826]
[1772937802726,0.28432314,83.039,82.998,0.5]
[1772937802924,4.19714594,83.04,82.998,0.5]
[1772937803116,0.28432314,83.039,82.998,0.5]
[1772937803317,4.19714594,83.03,82.998,0.5]
[1772937804526,12.04545488,83.019,82.997,12.04862826]
[1772937804913,4.19714594,83.02,82.997,12.04862826]
[1772937805115,12.0447909,83.024,82.997,12.04862826]
[1772937805436,12.0447909,83.024,82.996,12.11191272]
[1772937806610,4.19714594,83.03,82.996,12.11191272]
[1772937806611,12.32830777,83.029,82.996,12.11191272]
[1772937807211,12.32830777,83.029,82.968,60.26394553]
[1772937807212,0.28432314,83.019,82.941,0.5]
[1772937807417,42.43826934,83.029,82.952,0.5]
[1772937807418,4.19714594,83.0,82.952,0.5]
[1772937808015,0.28432314,83.025,82.952,0.5]
[1772937808216,4.19714594,83.01,82.952,0.5]
[1772937808539,0.28432314,83.019,82.952,0.5]
[1772937808738,0.28432314,83.029,82.957,0.5]
[1772937808919,4.19714594,83.03,82.958,0.5]
[1772937809113,4.19714594,83.03,82.959,0.78432314]
[1772937809331,4.19714594,83.03,82.96,0.5]
[1772937809737,12.04267925,83.038,82.965,0.5]
[1772937810043,12.04267925,83.038,82.966,0.5]
[1772937810928,12.04267925,83.038,82.971,0.5]
[1772937811337,12.04267925,83.038,82.972,0.5]
[1772937811648,4.19714594,83.03,82.972,0.5]
[1772937812226,4.19714594,83.02,82.972,0.5]
[1772937812728,0.28432314,83.037,82.972,0.5]
[1772937812729,4.19714594,83.01,82.972,0.5]
[1772937813048,12.04688648,83.009,82.974,0.5]
[1772937813933,12.04688648,83.009,82.976,0.5]
[1772937816239,4.19714594,83.02,82.978,0.5]
[1772937818044,12.04543538,83.019,82.98,0.5]
[1772937818245,0.28432314,83.018,82.98,0.5]
[1772937820247,12.04572557,83.017,82.982,0.5]
[1772937822844,42.15140784,83.034,82.983,12.05066097]
[1772937823051,0.1,83.05,82.987,0.5]
[1772937823248,0.1,83.05,82.988,0.5]
[1772937823429,0.1,83.05,82.988,20.30130467]
[1772937823749,60.17268709,83.095,82.984,6.29244054]
[1772937823750,0.1,83.13,82.994,0.5]
[1772937823944,0.1,83.13,82.992,3.97815716]
[1772937823945,4.19714594,83.07,82.999,0.5]
[1772937824145,4.19714594,83.08,83.0,0.5]
[1772937824346,0.28432314,83.079,83.0,0.5]
[1772937824854,4.19714594,83.08,83.0,0.5]
[1772937825056,12.03667274,83.08,83.006,0.5]
[1772937825255,30.07839745,83.117,83.01,3.69383402]
[1772937825461,4.19714594,83.1,83.015,0.5]
[1772937825641,0.28432314,83.099,83.016,0.5]
[1772937825834,3.69383402,83.114,83.016,0.5]
[1772937826035,4.19714594,83.1,83.022,0.5]
[1772937826236,12.03383915,83.099,83.027,0.5]
[1772937826453,12.03383915,83.099,83.028,0.5]
[1772937826755,0.28432314,83.098,83.028,0.5]
[1772937827066,42.11843703,83.099,83.028,0.5]
[1772937827245,0.14216157,83.098,83.028,0.5]
[1772937827849,0.28432314,83.098,83.028,0.5]
[1772937828767,12.03412878,83.097,83.031,0.5]
[1772937828941,4.19714594,83.09,83.031,0.5]
[1772937829141,12.03412878,83.097,83.031,0.5]
[1772937830163,4.19714594,83.11,83.031,0.5]
[1772937830872,12.03239119,83.109,83.037,0.5]
[1772937832762,12.03383915,83.099,83.039,0.28432314]
[1772937833061,12.03383915,83.099,83.04,0.5]
[1772937834667,12.03253597,83.108,83.04,0.5]
[1772937835044,0.28432314,83.119,83.042,0.5]
[1772937835251,4.17278139,83.11,83.043,0.5]
[1772937835553,4.17278139,83.1,83.043,0.5]
[1772937835756,4.17278139,83.09,83.043,0.5]
[1772937837060,4.17278139,83.08,83.043,0.5]
[1772937837262,4.17278139,83.08,83.045,0.5]
[1772937837463,12.03657799,83.081,83.045,0.5]
[1772937838467,4.17278139,83.1,83.046,0.5]
[1772937838967,4.17278139,83.09,83.046,0.5]
[1772937839554,0.28432314,83.088,83.048,0.5]
[1772937839749,4.17278139,83.08,83.047,12.04137416]
[1772937840151,4.17278139,83.07,83.038,12.04254756]
[1772937840766,4.17278139,83.07,83.039,0.5]
[1772937841366,0.28432314,83.079,83.039,0.5]
[1772937841748,0.14216157,83.077,83.04,12.04238921]
[1772937841948,4.17278139,83.06,83.023,0.5]
[1772937842254,0.28432314,83.069,83.024,0.5]
[1772937842769,42.1290835,83.078,83.022,18.45082224]
[1772937842770,0.28432314,83.059,83.022,18.45082224]
[1772937843071,4.17278139,83.05,83.022,18.45082224]
[1772937845076,12.04108417,83.049,83.022,6.40591764]
[1772937845372,12.04108417,83.049,83.023,12.04485504]
[1772937846274,12.04108417,83.049,83.022,6.40591764]
[1772937846460,12.04108417,83.049,83.022,18.45091726]
[1772937848875,60.18440501,83.078,83.022,18.45091726]
[1772937848876,0.28432314,83.069,83.023,0.5]
[1772937849075,4.17278139,83.06,83.025,0.5]
[1772937850777,12.03963447,83.059,83.026,12.04441982]
[1772937850974,12.03908977,83.063,83.027,0.5]
[1772937852581,4.17278139,83.06,83.027,0.5]
[1772937853976,4.17278139,83.06,83.029,0.5]
[1772937856085,12.03963447,83.059,83.031,0.5]
[1772937858875,12.03963447,83.059,83.033,0.5]
[1772937862493,12.03898448,83.064,83.035,0.5]
[1772937862692,12.32261272,83.069,83.035,0.5]
[1772937863490,4.17278139,83.06,83.034,12.04325938]
[1772937863786,4.17278139,83.06,83.035,0.5]
[1772937863994,12.32261272,83.069,83.035,0.5]
[1772937864881,12.32261272,83.069,83.034,42.15140784]
[1772937864882,12.32261272,83.069,83.037,0.5]
[1772937866678,4.17278139,83.07,83.037,0.5]
[1772937866883,4.17278139,83.07,83.039,0.5]
[1772937867085,0.14216157,83.079,83.039,0.5]
[1772937867299,12.03543231,83.088,83.039,0.5]
[1772937867602,4.17278139,83.08,83.039,0.5]
[1772937867994,42.12401309,83.088,83.039,0.5]
[1772937868202,4.17278139,83.08,83.039,0.5]
[1772937869114,16.2094459,83.08,83.041,0.5]
[1772937869497,4.17278139,83.08,83.041,0.5]
[1772937869697,4.17278139,83.1,83.041,0.5]
[1772937869910,0.28432314,83.099,83.041,0.5]
[1772937870110,4.17278139,83.09,83.041,0.5]
[1772937870904,4.17278139,83.09,83.043,0.5]
[1772937871612,12.03528746,83.089,83.043,0.5]
[1772937872601,4.17278139,83.09,83.043,0.5]
[1772937873210,4.17278139,83.09,83.045,0.5]
[1772937877014,4.17278139,83.09,83.046,42.14531704]
[1772937877199,4.17278139,83.09,83.047,0.5]
[1772937878715,4.17278139,83.09,83.049,0.5]
[1772937879317,0.28432314,83.099,83.049,0.5]
[1772937880622,0.28432314,83.099,83.048,102.35044792]
[1772937880623,4.17278139,83.1,83.051,0.5]
[1772937881413,12.03284943,83.106,83.051,0.5]
[1772937882930,0.28432314,83.099,83.053,0.5]
[1772937883233,4.17278139,83.09,83.053,0.5]
[1772937883431,0.28432314,83.105,83.053,0.5]
[1772937883615,0.28432314,83.099,83.053,0.5]
[1772937884835,0.28432314,83.099,83.054,42.14125749]
[1772937885220,0.28432314,83.099,83.055,0.5]
[1772937887149,0.28432314,83.099,83.056,42.14024272]
[1772937887434,0.28432314,83.099,83.057,0.5]
[1772937889233,0.28432314,83.097,83.057,0.5]
[1772937890336,30.07916837,83.114,83.057,0.5]
[1772937890337,4.27278139,83.12,83.059,0.5]
[1772937890509,0.28432314,83.119,83.059,0.5]
[1772937890714,4.17278139,83.11,83.059,0.5]
[1772937892828,12.13081017,83.12,83.061,0.5]
[1772937892829,0.28432314,83.119,83.061,0.5]
[1772937893139,0.14216157,83.119,83.061,0.5]
[1772937894018,4.17278139,83.11,83.061,0.5]
[1772937894727,4.17278139,83.11,83.063,0.5]
[1772937894923,12.03189892,83.113,83.063,0.5]
[1772937895522,4.17278139,83.11,83.063,0.5]
[1772937896637,4.17152219,83.1,83.063,0.5]
[1772937896935,4.17152219,83.1,83.065,0.5]
[1772937899931,4.17152219,83.09,83.047,0.5]
[1772937900130,0.28432314,83.089,83.047,0.5]
[1772937900447,0.28432314,83.079,83.042,0.5]
[1772937901531,0.28432314,83.079,83.026,12.04441982]
[1772937901754,4.17152219,83.05,83.026,12.04441982]
[1772937902048,12.03912875,83.063,83.029,0.5]
[1772937902426,4.17152219,83.08,83.029,0.5]
[1772937902618,4.17152219,83.09,83.03,0.5]
[1772937904025,4.17152219,83.09,83.033,0.5]
[1772937904226,4.17152219,83.06,83.032,0.5]
[1772937904532,4.17152219,83.07,83.032,0.5]
[1772937905330,0.28432314,83.069,83.032,0.5]
[1772937905531,4.17152219,83.07,83.013,60.23095218]
[1772937905532,4.17152219,83.05,83.013,0.5]
[1772937905827,4.17152219,83.05,83.015,0.5]
[1772937906236,12.04108417,83.049,83.017,0.5]
[1772937906844,0.28432314,83.048,83.016,12.04587067]
[1772937907435,4.17152219,83.04,83.016,12.04587067]
[1772937907629,0.28432314,83.048,83.002,30.11952625]
[1772937907630,4.17152219,83.03,83.004,0.5]
[1772937907842,4.17152219,83.03,83.003,12.0477573]
[1772937908044,0.28432314,83.029,82.978,30.12842035]
[1772937908246,4.17152219,83.0,82.979,0.5]
[1772937908551,4.17152219,83.01,82.979,0.5]
[1772937908931,4.17152219,83.0,82.979,0.5]
[1772937909133,4.17152219,82.99,82.97,12.55254911]
[1772937909650,4.17152219,83.0,82.971,0.5]
[1772937910028,4.17152219,82.99,82.971,0.5]
[1772937910233,4.17152219,82.99,82.972,12.05225859]
[1772937910432,4.17152219,83.0,82.972,12.05225859]
[1772937910647,4.17152219,82.99,82.953,0.5]
[1772937910945,12.04810428,83.001,82.954,0.5]
[1772937910946,4.45584533,83.0,82.954,0.5]
[1772937911148,4.17152219,82.99,82.954,0.5]
[1772937912334,12.04810428,83.001,82.955,12.05472846]
[1772937912335,4.17152219,82.98,82.955,12.05472846]
[1772937912536,4.17152219,82.98,82.956,0.5]
[1772937913241,0.28432314,82.988,82.956,0.5]
[1772937913852,4.17152219,82.98,82.956,0.5]
[1772937915365,0.28432314,83.0,82.958,0.5]
[1772937915540,4.45584533,83.0,82.958,0.5]
[1772937915740,4.17152219,82.99,82.958,0.5]
[1772937916549,4.17152219,82.97,82.938,0.5]
[1772937916791,4.17152219,82.96,82.93,0.5]
[1772937917663,4.17152219,82.96,82.939,12.05703886]
[1772937917839,4.17152219,82.96,82.93,0.5]
[1772937917840,12.05414722,82.959,82.93,12.55825743]
[1772937918039,12.05414722,82.959,82.934,12.05776096]
[1772937918249,4.17152219,82.95,82.923,0.5]
[1772937918453,4.17152219,82.95,82.924,12.05919026]
[1772937918651,12.05414722,82.959,82.918,12.06009164]
[1772937918652,4.17152219,82.94,82.918,12.06009164]
[1772937918845,60.25384251,82.983,82.918,12.06009164]
[1772937918846,4.17152219,82.96,82.919,0.5]
[1772937919253,4.17152219,82.94,82.882,0.5]
[1772937919454,4.17152219,82.93,82.883,0.5]
[1772937919637,4.17152219,82.93,82.885,0.5]
[1772937920158,4.17152219,82.95,82.885,0.5]
[1772937920159,4.17152219,82.92,82.885,0.5]
[1772937920454,0.28432314,82.919,82.885,0.5]
[1772937920640,10.47855467,82.92,82.885,0.5]
[1772937921048,0.28432314,82.928,82.885,0.5]